Cogmind - Beta 15 @@@ ROGUE MODE // 2025.08.15 @ 17:38:41 Player: Zedx Result: Destroyed by H-55 Commando with Gauss Rifle Performance ------------- Evolutions (3) 1500 Regions Visited (5) 1000 Robots Destroyed (10) 50 Value Destroyed (228) 228 Prototype IDs (2) 40 Alien Tech Used (0) 0 Bonus (0) 0 TOTAL SCORE: 2818 Bonus ------- None Cogmind --------- Core Integrity 0/700 Matter 164/300 Energy 99/100 System Corruption 0% Temperature Cool (0) Movement Core (50) Location -7/Lower Caves Parts ------- > --- POWER (2) -------- (None) > --- PROPULSION (4) --- (None) > --- UTILITY (4) ------ Advanced Visual Processing Unit Advanced Visual Processing Unit Targeting Computer > --- WEAPON (3) ------- (None) > --- INVENTORY (5) ---- Light Nuclear Core Recoil Stabilizer Improved Medium Armor Plating Molecular Deconstructor Peak State ------------ > --- POWER ------------ (None) > --- PROPULSION ------- (None) > --- UTILITY ---------- Advanced Visual Processing Unit Advanced Visual Processing Unit Targeting Computer > --- WEAPON ----------- Molecular Deconstructor > --- INVENTORY -------- Light Nuclear Core Recoil Stabilizer Improved Medium Armor Plating [Rating: 26] Favorites ----------- Power Ion Engine Engine Ion Engine Power Core Nuclear Core Propulsion Compact Wheel Leg Aluminum Leg Wheel Compact Wheel Hover Unit Airjet Flight Unit Flight Unit Utility Advanced Visual Processing Unit Device Sensor Array Storage Small Storage Unit Processor Advanced Visual Processing Unit Weapon Small Laser Energy Gun Small Laser Ballistic Gun Assault Rifle Launcher Shock Bomb Launcher Special Weapon Molecular Deconstructor Build | -11 -10 -9 -8 -7 -7 ------- Run | Yrd Mat Mat Mat Fac Low Slots Evolved 6 | . . 2 2 2 . Power 1 | . . . 1 . . Propulsion 2 | . . 1 . 1 . Utility 2 | . . 1 1 . . Weapon 1 | . . . . 1 . Parts Attached 29 | 6 1 4 7 10 1 Power 6 | 1 . 2 1 2 . Engine 4 | 1 . 1 1 1 . Core 2 | . . 1 . 1 . Reactor . | . . . . . . Propulsion 10 | 2 . 1 4 3 . Treads . | . . . . . . Leg 1 | . . 1 . . . Wheel 3 | 2 . . . 1 . Hover 3 | . . . 2 1 . Flight 3 | . . . 2 1 . Utility 5 | 1 1 . 1 2 . Device 1 | . 1 . . . . Storage 1 | 1 . . . . . Processor 3 | . . . 1 2 . Hackware . | . . . . . . Protection . | . . . . . . Artifact . | . . . . . . Weapon 8 | 2 . 1 1 3 1 Energy Gun 4 | 1 . . 1 2 . Energy Cannon . | . . . . . . Ballistic Gun 2 | 1 . . . 1 . Ballistic Cannon . | . . . . . . Launcher 1 | . . 1 . . . Special Weapon 1 | . . . . . 1 Impact Weapon . | . . . . . . Slashing Weapon . | . . . . . . Piercing Weapon . | . . . . . . Special Melee Weapon . | . . . . . . Unidentified Prototypes 2 | . . . 1 . 1 Corrupted Parts 2 | . . 2 . . . System Corruption 11 | . . 11 . . . Parts Lost 21 | . . 5 . 16 . Power 5 | . . 1 . 4 . Propulsion 6 | . . 1 . 5 . Utility 2 | . . . . 2 . Weapon 8 | . . 3 . 5 . Highest Loss Streak 16 | . . 2 . 16 . To Critical Strikes 1 | . . . . 1 . Average Backups 3 | . . 5 7 4 3 Power 1 | . . 2 1 1 1 Propulsion 1 | . . 2 2 1 . Utility . | . . . 2 . 1 Weapon . | . . . 1 1 . Tool/Special . | . . . . . . Unused Backups 4 | . . . . . 4 Power 1 | . . . . . 1 Propulsion . | . . . . . . Utility 2 | . . . . . 2 Weapon 1 | . . . . . 1 Tool/Special . | . . . . . . Average Slot Usage (%) 50 | . 98 45 47 44 25 Engine 5 | . 14 4 8 3 . Core 1 | . . 1 . 3 . Wheel 6 | . 28 7 . . . Hover 2 | . . . 8 5 . Flight 1 | . . . 15 1 . Device 5 | . 12 7 . 3 . Storage 7 | . 14 11 9 4 . Processor 8 | . . . 6 10 23 Energy Gun 5 | . 14 4 1 7 . Ballistic Gun 4 | . 14 4 . 1 2 Peak Build Rating 26 | 6 7 9 15 22 26 Average Rating 8 | 4 6 4 9 12 10 On Entrance 6 | . 6 7 1 13 10 Naked Turns . | . . . . . . Heaviest Build 17 | 13 14 17 11 16 6 Greatest Support 32 | 32 32 32 16 23 3 Greatest Overweight (x) 5 | . . 5 1 2 1 Average Overweight (x) . | . . . . . . Largest Inventory Capacity 8 | 8 8 8 8 8 5 Average Capacity 7 | 6 8 8 8 6 5 Most Carried 8 | 2 1 8 8 8 5 Average Carried 4 | . . 5 7 4 4 Final Capacity 8 | 8 8 8 8 5 5 Final Carried 8 | . 1 8 8 3 5 Class Distribution -------------------- 100% | Mutant Dominant Class ---------------- Mutant | -10/Materials Mutant | -9/Materials Mutant | -8/Materials Mutant | -7/Factory Mutant | -7/Lower Caves Resources | -11 -10 -9 -8 -7 -7 ----------- Run | Yrd Mat Mat Mat Fac Low Matter Collected 378 | 41 46 87 . 134 70 Remotely . | . . . . . . Salvage Created 288 | . 46 120 . 122 . Parts 21 | . 4 9 . 8 . Haulers Intercepted . | . . . . . . Recyclers Shooed . | . . . . . . Parts Field Recycled . | . . . . . . Retrieved Matter . | . . . . . . Parts Self-Destructed . | . . . . . . Prevented 1 | . . . . . 1 Kills | -11 -10 -9 -8 -7 -7 ------- Run | Yrd Mat Mat Mat Fac Low Combat Hostiles Destroyed 8 | . 1 4 . 3 . Guns 6 | . 1 2 . 3 . AOE 2 | . . 2 . . . Classes Destroyed 3 | . 1 1 . 1 . Worker 2 | . . . . 2 . Swarmer 5 | . . 2 . 3 . Grunt 3 | . 1 2 . . . Best Kill Streak 3 | . 1 2 . 3 . Combat Bots Only 2 | . 1 2 . 2 . Max Kills in Single Turn 1 | . 1 1 . 1 . Gunslinging . | . . . . . . Exploded 1 | . . 1 . . . Melee . | . . . . . . Uniques/NPCs Destroyed . | . . . . . . Combat | -11 -10 -9 -8 -7 -7 -------- Run | Yrd Mat Mat Mat Fac Low Hostile Shots Fired 284 | . 8 91 10 172 3 Missed 81 | . 3 25 6 46 1 Hits 203 | . 5 66 4 126 2 Projectile 203 | . 5 66 4 126 2 Critical Strikes 4 | . . 2 1 1 . Damage Taken 2715 | . 67 809 60 1760 19 Core 1094 | . . 377 15 683 19 Absorbed by Shields . | . . . . . . Regen/Repaired (Parts) 17 | . . . . 17 . Core Remaining (%) 75 | 100 100 5 97 . . Volleys Fired 51 | . 3 15 . 32 1 Largest 2 | . 2 2 . 2 1 Hottest 110 | . 60 60 . 110 25 Shots Fired 65 | . 6 21 . 37 1 Gun 60 | . 6 16 . 37 1 Cannon . | . . . . . . Launcher 5 | . . 5 . . . Special . | . . . . . . Kinetic 11 | . 3 6 . 1 1 Thermal 46 | . 3 10 . 33 . Explosive . | . . . . . . Electromagnetic 8 | . . 5 . 3 . Robot Hit Streak 8 | . 3 7 . 8 . Robot Miss Streak 5 | . 1 5 . 4 . Penetration Max . | . . . . . . Secondary Targets . | . . . . . . Shots Hit Robots 36 | . 4 10 . 22 . Core Hits 15 | . 2 6 . 7 . Critical Kills . | . . . . . . Critical Parts Destroyed . | . . . . . . Critical Strikes 2 | . . . . 2 . Burn 1 | . . . . 1 . Corrupt 1 | . . . . 1 . Melee Attacks . | . . . . . . Impact . | . . . . . . Slashing . | . . . . . . Piercing . | . . . . . . Sneak Attacks . | . . . . . . Combat Hostiles . | . . . . . . Follow-up Attacks . | . . . . . . Damage Inflicted 688 | . 46 205 . 437 . Guns 581 | . 46 113 . 422 . Cannons . | . . . . . . Explosions 81 | . . 81 . . . Melee . | . . . . . . Ramming 26 | . . 11 . 15 . Kinetic 80 | . 25 37 . 18 . Thermal 467 | . 21 76 . 370 . Explosive . | . . . . . . Electromagnetic 115 | . . 81 . 34 . Impact . | . . . . . . Slashing . | . . . . . . Piercing . | . . . . . . Highest Corruption 12 | . 3 12 . . . Average Corruption 7 | . 2 8 . . . Corruption Purged . | . . . . . . Corruption Blocked . | . . . . . . Effects 3 | . . 3 . . . Matter Fused 1 | . . 1 . . . Data Loss (minor) 2 | . . 2 . . . Overload Shots . | . . . . . . Overflow Damage . | . . . . . . Projectiles . | . . . . . . Explosions . | . . . . . . Melee . | . . . . . . Knockbacks . | . . . . . . Impact . | . . . . . . Kinetic . | . . . . . . Secondary . | . . . . . . Self-Inflicted Damage 11 | . . 4 . 7 . Shots . | . . . . . . Rammed 9 | . . 4 . 5 . Targets Rammed 9 | . . 4 . 5 . Kicked . | . . . . . . Crushed . | . . . . . . Highest Temperature 120 | . 12 10 9 120 . Average Temperature 57 | . 9 2 9 74 . Received Heat Transfer 507 | . 36 426 45 . . Siege Activations . | . . . . . . Martial Activations . | . . . . . . Shielding Activations . | . . . . . . Robots Disrupted . | . . . . . . Combat Hostiles . | . . . . . . Robots Corrupted . | . . . . . . Combat Hostiles . | . . . . . . Parts Fried . | . . . . . . Impact Corruptions . | . . . . . . Robots Melted . | . . . . . . Combat Hostiles . | . . . . . . Parts Melted 1 | . . . . 1 . Heat Transferred 1113 | . 50 175 . 888 . Parts Sabotaged . | . . . . . . Parts Stolen . | . . . . . . Parts Stripped . | . . . . . . Power Chain Reactions . | . . . . . . Alert | -11 -10 -9 -8 -7 -7 ------- Run | Yrd Mat Mat Mat Fac Low Maximum Alert Level . | . . . . . . Low Security (%) 100 | 100 100 100 100 100 . Level 1 . | . . . . . . Level 2 . | . . . . . . Level 3 . | . . . . . . Level 4 . | . . . . . . Level 5 . | . . . . . . High Security . | . . . . . . Max Security . | . . . . . . Peak Influence 75 | . 20 70 75 40 . Initial 29 | . . . 3 29 . Average 15 | . 1 36 11 9 . Influence Increases 421 | . 20 190 75 136 . Destroy 0b10 Robot/C 160 | . 20 80 . 60 . Destroy 0b10 Robot/NC 10 | . . . . 10 . Destroy Leader 30 | . . 20 . 10 . Successful Hack 11 | . . . . 11 . Disable Machine 15 | . . 15 . . . Lose Combat Pursuer 195 | . . 75 75 45 . Influence Decreases 421 | . 20 180 20 171 30 Entered New Map 55 | . . . 7 36 12 Time Decay 281 | . 20 130 13 100 18 Lost Part 85 | . . 50 . 35 . Squads Dispatched 8 | . 2 2 1 3 . Investigation 2 | . . 1 . 1 . Extermination . | . . . . . . Reinforcement 6 | . 2 1 1 2 . Assault . | . . . . . . Garrison . | . . . . . . Intercept . | . . . . . . Searches Triggered . | . . . . . . Construction Impeded . | . . . . . . Haulers Reinforced . | . . . . . . Active Scanning Responses . | . . . . . . Cargo Convoy Interrupts . | . . . . . . Stealth | -11 -10 -9 -8 -7 -7 --------- Run | Yrd Mat Mat Mat Fac Low Distress Signals . | . . . . . . Communications Jammed . | . . . . . . Distress Signals . | . . . . . . Times Spotted 41 | . 4 15 7 13 2 Peak Tracking Total 7 | . 3 5 7 6 1 Tactical Retreats 5 | . . 3 1 1 . Traps | -11 -10 -9 -8 -7 -7 ------- Run | Yrd Mat Mat Mat Fac Low Traps Triggered 3 | . 2 1 . . . Indirectly . | . . . . . . Trap Hack Attempts . | . . . . . . Triggered . | . . . . . . Disarmed . | . . . . . . Reprogrammed . | . . . . . . Reused . | . . . . . . Traps Extracted . | . . . . . . Installed . | . . . . . . Triggered . | . . . . . . Machines | -11 -10 -9 -8 -7 -7 ---------- Run | Yrd Mat Mat Mat Fac Low Machines Disabled 2 | . . 1 . . 1 Max in Single Turn 1 | . . 1 . . 1 Machines Repaired . | . . . . . . Machines Dismantled . | . . . . . . Machines Sabotaged . | . . . . . . Overloaded Fab Kills . | . . . . . . Hacking | -11 -10 -9 -8 -7 -7 --------- Run | Yrd Mat Mat Mat Fac Low Machines Accessed 8 | . 1 1 1 5 . Terminals 5 | . 1 . 1 3 . Fabricators 1 | . . . . 1 . Repair Stations 2 | . . 1 . 1 . Recycling Units . | . . . . . . Scanalyzers . | . . . . . . Garrison Access . | . . . . . . Total Hacks 18 | . 3 2 2 11 . Successful 4 | . . . . 4 . Failed 14 | . 3 2 2 7 . Catastrophic 4 | . 1 1 1 1 . Database Lockouts . | . . . . . . Manual 8 | . 3 . 2 2 1 Terminals 11 | . 3 . 2 6 . Fabricators 2 | . . . . 2 . Repair Stations 5 | . . 2 . 3 . Recycling Units . | . . . . . . Scanalyzers . | . . . . . . Garrison Access . | . . . . . . Terminal Hacks 1 | . . . . 1 . Open DSF 1 | . . . . 1 . Fabricator Hacks . | . . . . . . Repair Station Hacks 3 | . . . . 3 . Scan Component 1 | . . . . 1 . Repair 1 | . . . . 1 . Refit 1 | . . . . 1 . Recycling Unit Hacks . | . . . . . . Scanalyzer . | . . . . . . Garrison Access Hacks . | . . . . . . Unauthorized Hacks . | . . . . . . Terminals . | . . . . . . Fabricators . | . . . . . . Repair Stations . | . . . . . . Recycling Units . | . . . . . . Scanalyzers . | . . . . . . Garrison Access . | . . . . . . Data Cores Recovered . | . . . . . . Used . | . . . . . . Hacking Detections 7 | . 1 1 1 4 . Full Trace Events 2 | . . 1 . 1 . Feedback Events . | . . . . . . Feedback Blocked . | . . . . . . Robot Schematics Acquired . | . . . . . . Robots Built . | . . . . . . Authchips . | . . . . . . Time . | . . . . . . Total Robot Build Rating . | . . . . . . Part Schematics Acquired . | . . . . . . Parts Built . | . . . . . . Authchips . | . . . . . . Time . | . . . . . . Total Part Build Rating . | . . . . . . Parts Repaired 1 | . . . . 1 . Time 38 | . . . . 38 . Parts Recycled . | . . . . . . Recycled Matter . | . . . . . . Retrieved Matter . | . . . . . . Retrieved Components . | . . . . . . Parts Scanalyzed . | . . . . . . Part Schematics Acquired . | . . . . . . Parts Damaged . | . . . . . . Bothacking | -11 -10 -9 -8 -7 -7 ------------ Run | Yrd Mat Mat Mat Fac Low Used RIF Installer . | . . . . . . Robots Hacked . | . . . . . . Non-combat . | . . . . . . Combat . | . . . . . . Robot Hacks Applied . | . . . . . . Relay Couplers Released . | . . . . . . Fabnet Peak Effective % . | . . . . . . Robots Rewired . | . . . . . . Allies Hacked . | . . . . . . Hacks Repelled . | . . . . . . Allies | -11 -10 -9 -8 -7 -7 -------- Run | Yrd Mat Mat Mat Fac Low Total Allies 1 | . . . . . 1 Largest Group 1 | . . . . . 1 Highest-Rated Group 127 | . . . . . 127 Highest-Rated Ally 127 | . . . . . 127 Total Orders . | . . . . . . Ally Attacks . | . . . . . . Total Damage . | . . . . . . Kills . | . . . . . . Allies Corrupted . | . . . . . . Allies Melted . | . . . . . . Intel | -11 -10 -9 -8 -7 -7 ------- Run | Yrd Mat Mat Mat Fac Low Active Infowar (turns) 938 | . 177 130 59 366 206 Optics 631 | . . . 59 366 206 Sensors 486 | . 177 130 . 179 . Robot Analysis Total . | . . . . . . Derelict Logs Recovered . | . . . . . . Drone Launches . | . . . . . . Drone Recoveries . | . . . . . . Exploration | -11 -10 -9 -8 -7 -7 ------------- Run | Yrd Mat Mat Mat Fac Low Turns Passed 1165 | 44 183 286 80 366 206 Spaces Moved 1187 | 35 107 185 119 358 383 Core 658 | 4 . 78 . 193 383 Treads . | . . . . . . Legs 45 | . . 45 . . . Wheels 200 | 31 107 62 . . . Hover 233 | . . . 88 145 . Flight 51 | . . . 31 20 . Fastest Speed 35 | 50 100 100 37 35 50 Average Speed 70 | 94 100 120 53 61 50 Slowest Speed 300 | 100 100 300 120 180 100 Overloaded Moves . | . . . . . . Propulsion Burnouts . | . . . . . . Robots Hopped 1 | . . . . 1 . Potential Cave-ins . | . . . . . . Cave-ins Triggered . | . . . . . . Exploration Rate (%) 19 | 3 23 20 18 14 37 Regions Visited 5 Branch Regions 1 Pre-discovered Areas . | . . . . . . Known Exits Taken . | . . . . . . Unknown Exits Taken 5 | 1 1 1 1 1 . Scrap Searched 1 | . . . . . 1 Spaces Dug . | . . . . . . Terrain Destroyed . | . . . . . . Melee . | . . . . . . Projectile . | . . . . . . AOE . | . . . . . . Terrain Rammed . | . . . . . . Walls Destroyed . | . . . . . . Machines Disabled . | . . . . . . Actions | -11 -10 -9 -8 -7 -7 --------- Run | Yrd Mat Mat Mat Fac Low Total 1449 | 46 177 228 134 469 395 Wait 117 | . 65 4 . 43 5 Move 1180 | 34 106 184 118 355 383 Hop 1 | . . . . 1 . Pick Up 38 | 6 2 10 6 12 2 Fast Attach . | . . . . . . Attach 34 | 6 1 5 6 15 1 Detach 6 | . . 3 1 1 1 Swap 4 | . . 2 2 . . Drop 9 | . . 1 1 5 2 Fire 51 | . 3 15 . 32 1 Melee . | . . . . . . Ram 9 | . . 4 . 5 . Kick . | . . . . . . Crush . | . . . . . . Escape Stasis . | . . . . . . Rewire . | . . . . . . Trap . | . . . . . . Miscellaneous . | . . . . . . Route ------- -11/Scrapyard -10/Materials (discovered 2 exits: *Mat / [*Min]) -9/Materials -8/Materials (discovered 2 exits: *Fac / [*Sto]) -7/Factory -7/Lower Caves History --------- Turn | Location | Event 13 | -11/Scrapyard | Discovered new exit (range 16) 45 | -11/Scrapyard | Entered Materials 87 | -10/Materials | Discovered new exit (range 8) 221 | -10/Materials | Discovered new exit (range 5) 228 | -10/Materials | Entered another Materials area 228 | -9/Materials | Evolved 2 slots: Propulsion x1, Utility x1 341 | -9/Materials | Build established: Mutant 387 | -9/Materials | Core integrity fell below 50% 419 | -9/Materials | System corruption reached 10% 474 | -9/Materials | Core integrity fell below 20% 480 | -9/Materials | Discovered new exit (range 16) 514 | -9/Materials | Entered another Materials area 514 | -8/Materials | Evolved 2 slots: Power x1, Utility x1 520 | -8/Materials | Discovered new exit (range 15) 591 | -8/Materials | Discovered new exit (range 5) 594 | -8/Materials | Entered Factory 594 | -7/Factory | Evolved 2 slots: Propulsion x1, Weapon x1 624 | -7/Factory | Discovered new exit (range 9) 675 | -7/Factory | Repaired Airjet 799 | -7/Factory | Core integrity fell below 50% 838 | -7/Factory | Core integrity fell below 20% 891 | -7/Factory | Lost 16 parts (4p5n2u5w) 960 | -7/Factory | Entered Lower Caves 983 | -7/Lower Caves | Encountered a Warlord checkpoint 1022 | -7/Lower Caves | Acquired the password to a Derelict Tinkerer's latest research 1027 | -7/Lower Caves | Found Prototype Special Weapon 1028 | -7/Lower Caves | Identified Molecular Deconstructor 1166 | -7/Lower Caves | Destroyed by H-55 Commando with Gauss Rifle Last Messages --------------- Access granted. 01026_ Dropped Autogun. 01027_ Acquired Prototype Special Weapon. 01028_ Dropped Minigun. 01028_ Identified Molecular Deconstructor. 01047_ PUBLIC SERVICE ANNOUNCEMENT: Unaware incursion detected. Likely classification: Search and Destroy. And maybe Retrieve. Something like that, yeah. 01115_ M-14 Sweeper extracts Fire Trap. 01116_ M-14 Sweeper reprogrammed Fire Trap. 01118_ M-14 Sweeper fails to extract Fire Trap. 01119_ M-14 Sweeper extracts Fire Trap. 01124_ M-14 Sweeper extracts Dirty Bomb Trap. 01149_ Slug penetrates E1-NEG(b). 01149_ E1-NEG(b) destroyed. 01150_ X-72 Disruptor IFF system glitched. A strange signal echoes through the caves. 01151_ IH-C88(M) reactivates. 01166_ Penetrated by Slug. Map ----- +----------------------------------------------------+ | ?????????????????????????????????????????????????? | | ?????????????????????????????????????????????????? | | ?????????????????????????????????????????????????? | | ?????????????????????????????????????????????????? | | ?????????????????????????????????????????????????# | | ????????????????????????????????????????????????## | | ???????????????????????????????????????????????## | | ?????????????????????????????????????????????### | | ?????????????????????????????????????????????# # | | ?????????????????????????????????????????????# | | ?????????????????????????????????????????????# | | ?# ?????????????????? ##??????????####???????## | | ?# ########++###### #?????????## ##???????# | | ?# #?????????# # ##????### | | ?# #?????????# #???## | | ?# #????????## ####?# # | | # #### #???????# # ### ### | | # ????### # #???????# # ### ##?? | | # ???????# #??## #???????# # ##??? | | #?????????# ###???? ## #???????# #???? | | ?????????## ##?????????####??# # # ##???# | | ###???#### #??#??##### #### ## ##??### | | ##??# # #??# ###?## # | | ##### #??# ## ### | | ##### #####??# #### ##### | | ##?# ######????# @ ##??#### ##?## | | ### #?## ##??## ##??????## #??## | | # ## #?# #?## #####????????# ##???# | | ## #?# ###!= ##????????????# # ##??## | | ?# ###### %*####???????????# #??## | | ?# #### !%= ###???????#### #?## # | | ## ## !%* #??????## # ### # | | # # ## ######## # # # | | # ## ##?# # # | | # ## h ##### # | | ## # # ##### | | ?## ## ### ##???? | | ??## ### ### ### # #?## ##????? | | ???# #?#######?# #?# ## #??### ##?????? | | ???####?????????# ##?##### #????####??????? | | ????????????????####??????#########??????????????? | | ?????????????????????????????????????????????????? | | ?????????????????????????????????????????????????? | | ?????????????????????????????????????????????????? | | ?????????????????????????????????????????????????? | | ?????????????????????????????????????????????????? | | ?????????????????????????????????????????????????? | | ?????????????????????????????????????????????????? | | ?????????????????????????????????????????????????? | | ?????????????????????????????????????????????????? | +----------------------------------------------------+ Best States ------------- Heat Dissipation 34 Energy Generation 18 Energy Capacity 250 Matter Stores 178 Matter Capacity 300 Sight Range 20 Robot Scan Range 14 Terrain Scan Density 10 Evasion (%) 63 Targeting Accuracy 5 Item Schematics ----------------- None Robot Schematics ------------------ None Fabricated ------------ Nothing Repaired ---------- Airjet | 57% | -7/Factory Alien Tech Used ----------------- None Achievements -------------- None Challenges ------------ None Game ------ Seed FieldAmuletBeamcaster Manual? 0 Play Time 00:16:57 Cumulative 43.2 hours Start 2025.08.15 @ 17:21:59 End 2025.08.15 @ 17:38:41 Sessions 1 Manual Loads 0 Difficulty Rogue Special Mode None Game No. 51 Rogue 51 Adventurer 0 Explorer 0 Win Type - Total 0 Types 0/0/0/0/0/0/0/0/0/0 Lore% 17 Gallery% 31 Achievement% 24 Wizard Run 0 Options --------- Layout 1 ASCII 0 Keyboard 1 Movement Numpad Keybinds 0 Fullscreen 2 Font 20/SmallcapsGlow Map View 50x35 Zoom Use 0% Tactical HUD 1 Map Filters NONE Filters NONE Steam 1 RUN: 205d1193-8073-425f-9de1-a0213127c48f